Cogmind - Beta 12 @@@ ROGUE MODE // 2023.11.05 @ 03:51:30 Player: Tallim Result: Destroyed by Y-45 Defender with Beam Rifle Performance ------------- Evolutions (1) 500 Regions Visited (3) 600 Robots Destroyed (32) 160 Value Destroyed (868) 868 Prototype IDs (0) 0 Alien Tech Used (0) 0 Bonus (0) 0 TOTAL SCORE: 2128 Bonus ------- None Cogmind --------- Core Integrity 0/400 Matter 266/300 Energy 239/265 System Corruption 0% Temperature Hot (223) Movement Rolling (90) Location -9/Materials Parts ------- > --- POWER (1) -------- Improved Ion Engine > --- PROPULSION (4) --- Wheel Compact Wheel > --- UTILITY (2) ------ Small Storage Unit Recalibrator > --- WEAPON (2) ------- Particle Cannon Improved Light Cannon > --- INVENTORY (8) ---- Backup Propulsion I Heat Sink Huge Storage Unit Medium Matter Pod (64) Peak State ------------ > --- POWER ------------ Improved Ion Engine > --- PROPULSION ------- Wheel Compact Wheel > --- UTILITY ---------- Small Storage Unit Recalibrator > --- WEAPON ----------- Particle Cannon Improved Light Cannon > --- INVENTORY -------- Backup Propulsion I Heat Sink Huge Storage Unit Medium Matter Pod [Rating: 13] Favorites ----------- Power Light Ion Engine Engine Light Ion Engine Propulsion Aluminum Leg Leg Aluminum Leg Wheel Wheel Hover Unit Backup Propulsion I Utility Small Storage Unit Device Heat Sink Storage Small Storage Unit Protection Hardened Light Armor Plating Weapon EM Pulse Gun Energy Gun EM Pulse Gun Energy Cannon Particle Cannon Ballistic Gun Assault Rifle Ballistic Cannon Improved Light Cannon Special Weapon Plasma Cutter Build | -11 -10 -10 -9 ------- Run | Jun Mat Min Mat Slots Evolved 2 | . . . 2 Power . | . . . . Propulsion 2 | . . . 2 Utility . | . . . . Weapon . | . . . . Parts Attached 37 | 6 9 1 21 Power 5 | 1 2 . 2 Engine 5 | 1 2 . 2 Core . | . . . . Reactor . | . . . . Propulsion 12 | 2 2 . 8 Treads . | . . . . Leg 9 | 2 2 . 5 Wheel 2 | . . . 2 Hover 1 | . . . 1 Flight . | . . . . Utility 10 | 1 4 . 5 Device 2 | . . . 2 Storage 6 | 1 3 . 2 Processor . | . . . . Hackware . | . . . . Protection 2 | . 1 . 1 Artifact . | . . . . Weapon 10 | 2 1 1 6 Energy Gun 4 | . 1 1 2 Energy Cannon 1 | . . . 1 Ballistic Gun 3 | 2 . . 1 Ballistic Cannon 1 | . . . 1 Launcher . | . . . . Special Weapon 1 | . . . 1 Impact Weapon . | . . . . Slashing Weapon . | . . . . Piercing Weapon . | . . . . Special Melee Weapon . | . . . . Unidentified Prototypes . | . . . . Parts Lost 20 | . 7 . 13 Power 4 | . 2 . 2 Propulsion 8 | . 2 . 6 Utility 2 | . 1 . 1 Weapon 6 | . 2 . 4 Highest Loss Streak 9 | . 7 . 9 To Critical Strikes . | . . . . Average Slot Usage (%) 83 | . 87 100 78 Engine 9 | . 11 14 7 Leg 28 | . 27 28 28 Storage 18 | . 20 28 15 Protection 4 | . 3 . 5 Energy Gun 12 | . 5 28 10 Energy Cannon 1 | . . . 3 Ballistic Gun 6 | . 16 . 4 Naked Turns . | . . . . Heaviest Build 96 | 14 15 17 96 Greatest Support 40 | 20 20 20 40 Greatest Overweight (x) 31 | 1 . . 31 Average Overweight (x) . | . . . 1 Largest Inventory Capacity 25 | 8 25 8 25 Average Capacity 13 | 6 8 8 17 Most Carried 8 | 4 8 7 8 Average Carried 5 | 1 4 7 5 Final Capacity 8 | 8 8 8 8 Final Carried 8 | 2 8 7 4 Class Distribution -------------------- 59% | Mutant 40% | Scavenger-Mutant Dominant Class ---------------- Mutant | -10/Materials Mutant | -10/Mines Scavenger-Mutant | -9/Materials Resources | -11 -10 -10 -9 ----------- Run | Jun Mat Min Mat Matter Collected 939 | 251 202 . 486 Remotely . | . . . . Salvage Created 1221 | . 328 . 893 Parts 78 | . 17 . 61 Haulers Intercepted . | . . . . Recyclers Shooed 5 | . 1 . 4 Parts Field Recycled . | . . . . Retrieved Matter . | . . . . Parts Self-Destructed . | . . . . Prevented . | . . . . Kills | -11 -10 -10 -9 ------- Run | Jun Mat Min Mat Combat Hostiles Destroyed 23 | . 7 . 16 Guns 19 | . 6 . 13 Cannons 3 | . . . 3 AOE 1 | . 1 . . Classes Destroyed 9 | . 2 . 7 Worker 4 | . 2 . 2 Builder 1 | . . . 1 Recycler 2 | . . . 2 Mechanic 1 | . . . 1 Watcher 1 | . . . 1 Swarmer 4 | . . . 4 Grunt 13 | . 7 . 6 Duelist 2 | . . . 2 Sentry 4 | . . . 4 Best Kill Streak 5 | . 5 . 4 Combat Bots Only 4 | . 3 . 4 Max Kills in Single Turn 2 | . 2 . 2 Gunslinging . | . . . . Exploded 1 | . 1 . . Melee . | . . . . Uniques/NPCs Destroyed . | . . . . Combat | -11 -10 -10 -9 -------- Run | Jun Mat Min Mat Damage Taken 2266 | . 839 . 1427 Core 552 | . 146 . 406 Absorbed by Shields . | . . . . Redirected to Shielding 53 | . 53 . . Core Remaining (%) 70 | 100 . 41 . Volleys Fired 128 | . 38 . 90 Largest 2 | . 2 . 2 Hottest 107 | . 60 . 107 Shots Fired 226 | . 65 . 161 Gun 202 | . 65 . 137 Cannon 22 | . . . 22 Launcher . | . . . . Special 2 | . . . 2 Kinetic 116 | . 56 . 60 Thermal 86 | . . . 86 Explosive . | . . . . Electromagnetic 24 | . 9 . 15 Robot Hit Streak 15 | . 13 . 15 Robot Miss Streak 4 | . 4 . 3 Penetration Max . | . . . . Secondary Targets 2 | . 1 . 1 Max Gunslinging Chain 1 | . 1 . 1 Shots Hit Robots 149 | . 45 . 104 Core Hits 55 | . 18 . 37 Critical Kills . | . . . . Critical Parts Destroyed . | . . . . Critical Strikes 1 | . . . 1 Burn 1 | . . . 1 Melee Attacks . | . . . . Impact . | . . . . Slashing . | . . . . Piercing . | . . . . Sneak Attacks . | . . . . Combat Hostiles . | . . . . Follow-up Attacks . | . . . . Damage Inflicted 2273 | . 742 . 1531 Guns 1750 | . 572 . 1178 Cannons 329 | . . . 329 Explosions 170 | . 170 . . Melee . | . . . . Ramming . | . . . . Kinetic 1191 | . 530 . 661 Thermal 926 | . 170 . 756 Explosive . | . . . . Electromagnetic 156 | . 42 . 114 Impact . | . . . . Slashing . | . . . . Piercing . | . . . . Highest Corruption . | . . . . Average Corruption . | . . . . Corruption Purged . | . . . . Corruption Blocked . | . . . . Overload Shots . | . . . . Overflow Damage 21 | . 21 . . Projectiles . | . . . . Explosions 21 | . 21 . . Melee . | . . . . Knockbacks . | . . . . Impact . | . . . . Kinetic . | . . . . Secondary . | . . . . Self-Inflicted Damage 32 | . 32 . . Shots 1 | . 1 . . Rammed . | . . . . Targets Rammed 1 | . 1 . . Kicked 1 | . 1 . . Crushed . | . . . . Highest Temperature 402 | . 20 . 402 Average Temperature 77 | . 6 . 87 Received Heat Transfer 870 | . 456 . 414 Effects 3 | . . . 3 Shutdowns 1 | . . . 1 Interference 1 | . . . 1 Matter Decay 1 | . . . 1 Siege Activations . | . . . . Robots Corrupted . | . . . . Combat Hostiles . | . . . . Parts Fried 1 | . . . 1 Impact Corruptions . | . . . . Robots Melted . | . . . . Combat Hostiles . | . . . . Parts Melted 2 | . . . 2 Heat Transferred 1864 | . 150 . 1714 Parts Sabotaged . | . . . . Parts Stolen . | . . . . Parts Stripped . | . . . . Power Chain Reactions 3 | . 3 . . Missiles Intercepted . | . . . . Alert | -11 -10 -10 -9 ------- Run | Jun Mat Min Mat Peak Influence 288 | . 178 . 288 Initial . | . . . . Average 76 | . 69 . 102 Maximum Alert Level 1 | . . . 1 Low Security (%) 87 | 100 100 100 78 Level 1 12 | . . . 21 Level 2 . | . . . . Level 3 . | . . . . Level 4 . | . . . . Level 5 . | . . . . High Security . | . . . . Max Security . | . . . . Squads Dispatched 4 | . 2 . 2 Investigation . | . . . . Extermination . | . . . . Reinforcement 4 | . 2 . 2 Assault . | . . . . Garrison . | . . . . Intercept . | . . . . Searches Triggered . | . . . . Construction Impeded . | . . . . Haulers Reinforced . | . . . . Active Scanning Responses . | . . . . Cargo Convoy Interrupts . | . . . . Stealth | -11 -10 -10 -9 --------- Run | Jun Mat Min Mat Distress Signals 5 | . 1 . 4 Communications Jammed . | . . . . Distress Signals . | . . . . Times Spotted 42 | . 10 . 32 Peak Tracking Total 5 | . 5 . 5 Tactical Retreats 1 | . 1 . . Traps | -11 -10 -10 -9 ------- Run | Jun Mat Min Mat Traps Triggered . | . . . . Indirectly . | . . . . Trap Hack Attempts . | . . . . Triggered . | . . . . Disarmed . | . . . . Reprogrammed . | . . . . Reused . | . . . . Traps Extracted . | . . . . Installed . | . . . . Triggered . | . . . . Machines | -11 -10 -10 -9 ---------- Run | Jun Mat Min Mat Machines Disabled 1 | . 1 . . Max in Single Turn 1 | . 1 . . Machines Repaired . | . . . . Machines Sabotaged . | . . . . Overloaded Fab Kills . | . . . . Hacking | -11 -10 -10 -9 --------- Run | Jun Mat Min Mat Machines Accessed 6 | . 2 . 4 Terminals 5 | . 1 . 4 Fabricators . | . . . . Repair Stations . | . . . . Recycling Units 1 | . 1 . . Scanalyzers . | . . . . Garrison Access . | . . . . Total Hacks 15 | . 6 . 9 Successful 8 | . 3 . 5 Failed 7 | . 3 . 4 Catastrophic . | . . . . Database Lockouts . | . . . . Manual . | . . . . Terminals 12 | . 3 . 9 Fabricators . | . . . . Repair Stations . | . . . . Recycling Units 3 | . 3 . . Scanalyzers . | . . . . Garrison Access . | . . . . Terminal Hacks 6 | . 1 . 5 Emergency Access Points 1 | . . . 1 Alert Level 2 | . . . 2 Locate Traps 1 | . 1 . . Hauler Manifests 1 | . . . 1 Zone Layout 1 | . . . 1 Fabricator Hacks . | . . . . Repair Station Hacks . | . . . . Recycling Unit Hacks 2 | . 2 . . Report Inventory 1 | . 1 . . Retrieve Components 1 | . 1 . . Scanalyzer . | . . . . Garrison Access Hacks . | . . . . Unauthorized Hacks . | . . . . Terminals . | . . . . Fabricators . | . . . . Repair Stations . | . . . . Recycling Units . | . . . . Scanalyzers . | . . . . Garrison Access . | . . . . Data Cores Recovered . | . . . . Used . | . . . . Hacking Detections 3 | . 1 . 2 Full Trace Events . | . . . . Feedback Events . | . . . . Feedback Blocked . | . . . . Robot Schematics Acquired . | . . . . Robots Built . | . . . . Authchips . | . . . . Time . | . . . . Total Robot Build Rating . | . . . . Part Schematics Acquired . | . . . . Parts Built . | . . . . Authchips . | . . . . Time . | . . . . Total Part Build Rating . | . . . . Parts Repaired . | . . . . Time . | . . . . Parts Recycled . | . . . . Recycled Matter . | . . . . Retrieved Matter . | . . . . Retrieved Components 10 | . 10 . . Parts Scanalyzed . | . . . . Part Schematics Acquired . | . . . . Parts Damaged . | . . . . Bothacking | -11 -10 -10 -9 ------------ Run | Jun Mat Min Mat Used RIF Installer . | . . . . Robots Hacked . | . . . . Non-combat . | . . . . Combat . | . . . . Robot Hacks Applied . | . . . . Relay Couplers Released . | . . . . Fabnet Peak Effective % . | . . . . Robots Rewired . | . . . . Allies Hacked . | . . . . Hacks Repelled . | . . . . Allies | -11 -10 -10 -9 -------- Run | Jun Mat Min Mat Total Allies . | . . . . Largest Group . | . . . . Highest-Rated Group . | . . . . Highest-Rated Ally . | . . . . Total Orders . | . . . . Ally Attacks . | . . . . Total Damage . | . . . . Kills . | . . . . Allies Corrupted . | . . . . Allies Melted . | . . . . Intel | -11 -10 -10 -9 ------- Run | Jun Mat Min Mat Robot Analysis Total . | . . . . Derelict Logs Recovered . | . . . . Drone Launches . | . . . . Drone Recoveries . | . . . . Exploration | -11 -10 -10 -9 ------------- Run | Jun Mat Min Mat Turns Passed 1838 | 66 444 251 1077 Spaces Moved 870 | 51 265 209 345 Core 33 | 21 . . 12 Treads . | . . . . Legs 818 | 30 265 209 314 Wheels 14 | . . . 14 Hover 5 | . . . 5 Flight . | . . . . Fastest Speed 50 | 50 120 120 90 Average Speed 156 | 102 120 120 215 Slowest Speed 1600 | 120 120 120 1600 Overloaded Moves . | . . . . Propulsion Burnouts . | . . . . Robots Hopped . | . . . . Cave-ins Triggered . | . . . . Exploration Rate (%) 32 | 4 53 40 31 Regions Visited 3 Branch Regions 1 Pre-discovered Areas . | . . . . Known Exits Taken . | . . . . Unknown Exits Taken 3 | 1 1 1 . Scrap Searched . | . . . . Spaces Dug . | . . . . Terrain Destroyed 7 | . 6 . 1 Melee . | . . . . Projectile 1 | . . . 1 AOE 6 | . 6 . . Terrain Rammed . | . . . . Walls Destroyed . | . . . . Machines Disabled . | . . . . Actions | -11 -10 -10 -9 --------- Run | Jun Mat Min Mat Total 1124 | 64 326 209 525 Wait 52 | . . . 52 Move 867 | 50 264 208 345 Hop . | . . . . Pick Up 34 | 8 13 . 13 Fast Attach . | . . . . Attach 29 | 6 8 1 14 Detach 2 | . 1 . 1 Swap 8 | . 1 . 7 Drop 3 | . . . 3 Fire 128 | . 38 . 90 Melee . | . . . . Ram . | . . . . Kick 1 | . 1 . . Crush . | . . . . Escape Stasis . | . . . . Rewire . | . . . . Trap . | . . . . Miscellaneous . | . . . . Route ------- -11/Junkyard -10/Materials -10/Mines -9/Materials History --------- Turn | Location | Event 3 | -11/Junkyard | Discovered new exit (range 15) 67 | -11/Junkyard | Entered Materials 326 | -10/Materials | Build established: Mutant 346 | -10/Materials | Core integrity fell below 50% 370 | -10/Materials | Lost 7 parts (2p2n1u2w) 478 | -10/Materials | Discovered new exit (range 16) 511 | -10/Materials | Entered Mines 522 | -10/Mines | Met a Derelict bent on vengeance 756 | -10/Mines | Discovered new exit (range 4) 762 | -10/Mines | Entered Materials 762 | -9/Materials | Evolved 2 slots: Propulsion x2 1061 | -9/Materials | Build established: Scavenger-Mutant 1296 | -9/Materials | Core integrity fell below 50% 1514 | -9/Materials | Core integrity fell below 20% 1550 | -9/Materials | Lost 9 parts (1p3n1u4w) 1839 | -9/Materials | Destroyed by Y-45 Defender with Beam Rifle Last Messages --------------- 01796_ R-06 Scavenger collects Lgt. Ion Engine. 01800_ R-06 Scavenger collects Com. Wheel. 01803_ Acquired Com. Wheel. 01804_ R-06 Scavenger collects Lgt. Ion Engine. Different forms of propulsion may not be used simultaneously, Backup Propulsion I automatically deactivated. The Recalibrator is an example of a part that consumes a large amount of energy each turn, consider turning it off when not vital. 01808_ Acquired 61 matter. 01811_ K-01 Serf cleans the Neutrino Reactor. 01813_ Acquired Imp. Light Cannon. 01816_ G-34 Mercenary destroyed. 01818_ K-01 Serf collects debris. 01826_ K-01 Serf destroyed. 01829_ R-06 Scavenger collects Aluminum Leg. 01831_ R-06 Scavenger collects Ion Engine. 01832_ Y-45 Defender destroyed. 01832_ U-05 Engineer builds a Door. 01835_ R-06 Scavenger collects Lgt. Ion Engine. 01838_ R-06 Scavenger collects Wheel. Map ----- +----------------------------------------------------+ | ????????????????????????????????????????????????? | | ????????????????????????????????????????????????? | | ????????????????????????????????????????????????? | | ????????????????????????????????????????????????? | | ????????????????????????????????????????????????? | | ????????????????????????????????????????????????? | | ????????????????????????????????????????????????? | | ????????????????????????????????????????????????? | | ????????????????????????????????????????????????? | | ????????????????????????????????????????????????? | | ????????????????????????????????????????????????? | | ?????????????????? ???????????????????????????? | | ???????????????? ???????????????????????????? | | ???????????????? % ??????????????????????????? | | ????????????????? [% ??????????????????#???????? | | ???????????????##? = ????????????????? #????###? | | ???????????????? ##% #######+######### #????]] ? | | ?????????????#??? # % #???]] ? | | ?????????????+ ??+ a #???]] | | ?????????????# !?#Y ???? | | ??????????????? # """ ]] #??????"" "" | | ????????????????? ;[[[ """ ]]w #??????"" "" | | ??????????????????#[[[ """ ] #???????" "" | | ??????????????????#u[ #??????? ? | | ??????????????????# r ! #???????#+#? | | ??????????????????# @ ######### ## | | ??????????????????# % % | | ??????????????????# % #######+#### | | ???????????????? + ??# + | | ?????????????? # ?????""" """ ######+########+ | | ???????????? ?#????????" """ #?# # ! | | ???????????# ????????????" """ #?# % # """ | | ???????????# ?????????????? #?# # """ | | ???????????????????????????""T"????# # """ | | ????????????????????????????""?????# # | | ???????????????????????????????????# # """ | | ???????????????????????????????????######## """ | | ??????????????????????????????????????????# """ | | ??????????????????????????????????????????# | | ??????????????????????????????????????????####### | | ????????????????????????????????????????????????? | | ????????????????????????????????????????????????? | | ????????????????????????????????????????????????? | | ????????????????????????????????????????????????? | | ????????????????????????????????????????????????? | | ????????????????????????????????????????????????? | | ????????????????????????????????????????????????? | | ????????????????????????????????????????????????? | | ????????????????????????????????????????????????? | | ????????????????????????????????????????????????? | +----------------------------------------------------+ Best States ------------- Heat Dissipation 38 Energy Generation 12 Energy Capacity 375 Matter Stores 300 Matter Capacity 300 Sight Range 16 Terrain Scan Density 10 Armor Coverage 150 Propulsion Shielding 33 Evasion (%) 55 Item Schematics ----------------- None Robot Schematics ------------------ None Fabricated ------------ Nothing Alien Tech Used ----------------- None Achievements -------------- Hey, That's Mine! Challenges ------------ None Game ------ Seed MachineComponentLeg Manual? 0 Play Time 00:24:51 Cumulative 11.3 hours Start 2023.11.05 @ 03:28:33 End 2023.11.05 @ 03:51:30 Sessions 1 Manual Loads 0 Difficulty Rogue Special Mode None Game No. 33 Rogue 33 Adventurer 0 Explorer 0 Win Type - Total 0 Types 0/0/0/0/0/0/0/0/0 Lore% 8 Gallery% 19 Achievement% 7 Wizard Run 0 Options --------- ASCII 0 Keyboard 0 Movement Mouse Keybinds 0 Fullscreen 1 Font 18/SmallcapsGlow Map View 76x50 Tactical HUD 1 Map Filters NONE Filters NONE Steam 1 RUN: 6a971ef1-547f-416e-a7f8-2d46a4956d12